[Event "Reykjavik Open 2024"]
[Site "Reykjavik"]
[Date "2024.03.15"]
[Round "1.1"]
[White "Gramb, Marius"]
[Black "Deac, Bogdan-Daniel"]
[Result "0-1"]
[ECO "B22"]
[WhiteElo "2142"]
[BlackElo "2690"]
[Annotator "TA"]
[PlyCount "80"]
[EventDate "2024.03.12"]
[EventCountry "ISL"]
[SourceTitle "playchess.com"]
[Source "ChessBase"]
[SourceQuality "1"]
[TimeControl "40/5400+30:1800+30"]

{[%evp 12,80,37,22,24,-6,0,-4,8,0,0,0,10,4,33,5,3,-10,-8,-9,0,-52,-50,-72,-31,-32,-31,-36,-37,-41,-25,-42,-43,-43,-47,-45,-53,-36,-36,-47,-35,-37,-31,-34,-27,-81,-81,-69,-68,-70,-83,-79,-69,-85,-38,-98,-92,-232,-243,-229,-223,-237,-243,-346,-335,-724,-692,-29987,-29988,-29990,-29974]} 1. e4 {[%emt 0:00:03]} c5 {[%emt 0:00:05]} 2. c3 {[%emt 0:00:22]} d5 {[%emt 0:04:10]} 3. exd5 {[%emt 0:00:23]} Qxd5 {[%emt 0:02:04]} 4. d4 {[%emt 0:00:10]} Nf6 {[%emt 0:01:52]} 5. Nf3 {[%emt 0:00:24]} e6 {[%emt 0:00:32]} 6. Na3 {[%emt 0:00:27][%cal Bb1a3,Ba3c4,Bc4e5][%mdl 32]} Qd8 {[%emt 0:00:43]} 7. Nc4 {[%emt 0:01:37]} Be7 {[%emt 0:01:44]} 8. Nce5 {[%emt 0:03:13]} O-O {[%emt 0:01:05]} 9. Be2 {[%emt 0:02:29]} cxd4 {[%emt 0:02:06] The position is equal.} 10. Qxd4 {[%emt 0:02:56]} Qxd4 {[%emt 0:12:47]} 11. Nxd4 {[%emt 0:00:36]} Nd5 {[%emt 0:00:13]} 12. O-O {[%emt 0:04:35]} f6 {[%emt 0:01:07]} 13. Nef3 {[%emt 0:06:07]} Rd8 {[%emt 0:02:51]} 14. c4 {[%emt 0:05:23]} Nc7 {[%emt 0:04:06]} 15. Be3 {[%emt 0:06:07]} e5 {[%emt 0:00:41]} 16. Nc2 {[%emt 0:11:33]} (16. Nb5 $11 Nxb5 17. cxb5) 16... Bf5 $15 {[%emt 0:09:06]} 17. Rac1 {[%emt 0:02:21]} Nba6 {[%emt 0:06:24]} 18. a3 {[%emt 0:07:36]} Nc5 {[%emt 0:01:33]} 19. Bxc5 {[%emt 0:04:48]} Bxc5 {[%emt 0:00:07]} 20. b4 {[%emt 0:00:19]} Be7 {[%emt 0:03:48]} 21. Rfd1 {[%emt 0:04:44]} Rxd1+ {[%emt 0:01:28]} 22. Bxd1 {[%emt 0:00:08]} a5 {[%emt 0:00:49]} 23. Ne3 {[%emt 0:06:17]} Be6 {[%emt 0:02:14]} 24. Rb1 {[%emt 0:05:14]} axb4 {[%emt 0:03:59]} 25. axb4 {[%emt 0:00:09]} b6 {[%emt 0:00:03]} 26. Bc2 {[%emt 0:06:24]} g6 {[%emt 0:00:42]} 27. g4 {[%emt 0:02:46]} Kg7 {[%emt 0:01:57]} 28. g5 {[%emt 0:11:31]} f5 $17 {[%emt 0:00:43]} (28... fxg5 29. Nxe5 Bd6 30. Nc6 $11) 29. Nxe5 {[%emt 0:00:05]} Bxg5 {[%emt 0:00:10]} 30. c5 {[%emt 0:01:20]} bxc5 {[%emt 0:07:18]} 31. bxc5 {[%emt 0:00:02]} Ra5 {[%emt 0:00:40][%cal Og5e3] [#] Threatens to win with ...Bxe3!} 32. Nd3 {[%emt 0:02:28]} Nb5 {[%emt 0:02:07]} ({Black should try} 32... Bxe3 $17 33. fxe3 Bd5) 33. f4 {[%emt 0:03:28]} ({Better is} 33. Bb3 $15 Nc3 34. Rb2) 33... Bf6 {[%emt 0:03:21] This pair of bishops is nice.} 34. Ne5 {[%emt 0:00:19] [#] White does not recover from this.} (34. Rb4 $17 {was necessary.}) 34... Bxe5 $1 $19 {[%emt 0:00:52]} 35. fxe5 {[%emt 0:00:01]} Nd4 {[%emt 0:00:32][%cal Of5f4]} (35... Nc7 36. c6 Ra6 (36... Rxe5 37. Rb7 $17) 37. Bd3 Rxc6 38. Kf2) 36. Rb7+ {[%emt 0:01:28]} Kh6 {[%emt 0:00:23] Strongly threatening ...Ra1+.} 37. c6 {[%emt 0:00:28]} (37. Bd1 $142) 37... Rxe5 {[%emt 0:04:42]} ({Much less strong is} 37... Nxc6 38. Rb6 Nd4 (38... Rxe5 39. Nxf5+ Bxf5 40. Rxc6 $15) 39. Rd6 Rxe5 40. Ng4+ fxg4 41. Rxd4) 38. Kf2 {[%emt 0:00:36]} (38. Rb4 Nxc6 39. Rb6) 38... f4 {[%emt 0:00:07]} 39. Ng2 {[%emt 0:00:29]} Re2+ {[%emt 0:00:14]} 40. Kg1 {[%emt 0:00:32]} Rxc2 {[%emt 0:00:15] Weighted Error Value: White=0.58/Black=0.06 (flawless) .  Mistake:       	White=6     	Black=1      Inaccurate:     	White=3     	Black=2      OK:         	White=9     	Black=15     Best:        	White=1     	Black=1} 0-1

[Event "Reykjavik Open 2024"]
[Site "Reykjavik"]
[Date "2024.03.15"]
[Round "1.2"]
[White "Ivanchuk, Vasyl"]
[Black "MacKinnon, Keith"]
[Result "1-0"]
[ECO "D38"]
[WhiteElo "2625"]
[BlackElo "2142"]
[Annotator "TA"]
[PlyCount "51"]
[EventDate "2024.03.12"]
[EventCountry "ISL"]
[SourceTitle "playchess.com"]
[Source "ChessBase"]
[SourceQuality "1"]
[TimeControl "40/5400+30:1800+30"]

{[%evp 12,51,31,7,41,47,43,34,54,46,46,42,53,47,60,45,63,45,57,60,55,58,56,58,84,81,260,259,274,266,270,263,238,260,431,362,505,495,514,475,931,941]} 1. d4 {[%emt 0:00:02]} Nf6 {[%emt 0:00:11]} 2. c4 {[%emt 0:00:05]} e6 {[%emt 0:00:06]} 3. Nf3 {[%emt 0:00:04]} d5 {[%emt 0:00:07]} 4. Nc3 {[%emt 0:00:04]} Bb4 {[%emt 0:00:07]} 5. Bg5 {[%emt 0:00:43]} h6 {[%emt 0:00:24]} 6. Bxf6 {[%emt 0:00:04]} Qxf6 {[%emt 0:00:11]} 7. Qb3 {[%emt 0:00:13][%csl LRb4,LRd5]} Nc6 {[%emt 0:03:24]} 8. e3 {[%emt 0:02:02]} dxc4 {[%emt 0:05:17]} 9. Qxc4 {[%emt 0:01:50]} O-O {[%emt 0:02:48] White is slightly better.} 10. Be2 {[%emt 0:00:11]} Bd6 {[%emt 0:08:11]} 11. O-O {[%emt 0:00:17]} a6 {[%emt 0:04:35]} 12. Rac1 {[%emt 0:04:29]} Rb8 {[%emt 0:09:02]} 13. Rfd1 {[%emt 0:09:55]} b5 {[%emt 0:07:13]} 14. Qb3 {[%emt 0:08:45] [#] Strongly threatening Ne4.} Bb7 {[%emt 0:07:06]} 15. Ne4 {[%emt 0:01:01]} Qe7 {[%emt 0:05:27]} 16. Nfd2 {[%emt 0:12:57]} e5 {[%emt 0:05:47]} 17. Nxd6 {[%emt 0:00:10]} Qxd6 {[%emt 0:05:24]} 18. d5 {[%emt 0:06:34] White is more active.} Na5 {[%emt 0:04:54] A mistake that costs the game.} (18... Ne7 $16 {keeps fighting.}) 19. Qc3 $1 $18 {[%emt 0:04:32][%csl LRa5,LRc7]} b4 {[%emt 0:07:50]} 20. Qc5 {[%emt 0:05:12] Black is weak on the light squares} (20. Qxc7 Qxd5 21. Bf3 Qd8 $18) 20... Qb6 {[%emt 0:00:49]} (20... Qxd5 $2 {perishes.} 21. Qxd5 Bxd5 22. Rc5 $18 (22. Rxc7 Rfc8 $11) (22. Bxa6 c6 $11)) 21. Qxc7 {[%emt 0:01:06]} Qxc7 {[%emt 0:05:56]} 22. Rxc7 {[%emt 0:00:11] [#] Rc5 would now be deadly.} Ba8 $2 {[%emt 0:00:22]} (22... Rfd8 23. e4 Rbc8) 23. e4 {[%emt 0:02:26]} ({Don't play} 23. Bxa6 Bxd5 24. Rc5 Ra8 25. Rxa5 Bb7 26. Bxb7 Rxa5 $18) 23... Rb6 {[%emt 0:03:55]} 24. Rdc1 {[%emt 0:00:21] White is clearly winning.} f5 {[%emt 0:01:08]} 25. f3 {[%emt 0:08:18]} Rf7 {[%emt 0:01:05]} (25... Rbb8 $142 26. R1c5 (26. Bxa6 b3 $18) 26... Nb7) 26. Rc8+ {[%emt 0:00:42] Weighted Error Value: White=0.10 (very precise) /Black=0.34.  Loses game:     	---       	Black=1      Mistake:       	---       	Black=2      Inaccurate:     	---       	Black=2      OK:         	White=10    	Black=6      Best:        	White=1     	---} 1-0

[Event "Reykjavik Open 2024"]
[Site "Reykjavik"]
[Date "2024.03.15"]
[Round "1.3"]
[White "Markuszewski, Maksymilian"]
[Black "Xu, Xiangyu"]
[Result "0-1"]
[ECO "A50"]
[WhiteElo "2141"]
[BlackElo "2623"]
[Annotator "TA"]
[PlyCount "59"]
[EventDate "2024.03.12"]
[EventCountry "ISL"]
[SourceTitle "playchess.com"]
[Source "ChessBase"]
[SourceQuality "1"]
[TimeControl "40/5400+30:1800+30"]

{[%evp 11,59,12,13,14,19,15,14,6,16,11,2,0,-2,-10,0,0,0,0,0,-13,-14,-14,-30,-16,0,-22,-35,-32,-20,-193,-189,-195,-183,-193,-188,-979,-941,-997,-595,-1008,-990,-980,-1004,-967,-979,-1023,-1018,-970,-963,-1222]} 1. d4 {[%emt 0:00:01][%cal Bd2d4,Bd4d5][%mdl 32]} e6 {[%emt 0:00:12]} 2. c4 {[%emt 0:00:05]} b6 {[%emt 0:00:08]} 3. a3 {[%emt 0:00:13]} Nf6 {[%emt 0:01:14]} 4. Nc3 {[%emt 0:00:14]} Bb7 {[%emt 0:00:11]} 5. d5 {[%emt 0:00:52]} Bd6 {[%emt 0:00:16]} 6. Nf3 {[%emt 0:00:20]} O-O {[%emt 0:00:11]} 7. g3 {[%emt 0:00:49]} c6 {[%emt 0:00:15][%cal Rc6d5]} 8. Bg2 {[%emt 0:01:07]} cxd5 {[%emt 0:03:59]} 9. cxd5 {[%emt 0:00:54] The position is equal.} exd5 {[%emt 0:00:09]} 10. O-O {[%emt 0:01:00]} Na6 {[%emt 0:00:24]} 11. b4 {[%emt 0:21:05]} Nc7 {[%emt 0:02:09] Repels Nb5} 12. Bb2 {[%emt 0:01:56]} Re8 {[%emt 0:01:01]} 13. Rc1 {[%emt 0:09:51]} Rc8 {[%emt 0:03:05]} 14. Qb3 {[%emt 0:02:43]} Ba6 {[%emt 0:17:20]} 15. b5 {[%emt 0:09:23]} Bb7 {[%emt 0:00:06]} 16. Rfd1 {[%emt 0:04:19]} Ne6 {[%emt 0:00:30]} 17. e3 {[%emt 0:01:46]} Bf8 {[%emt 0:05:03]} 18. Qa2 {[%emt 0:15:20]} Rc7 {[%emt 0:02:30]} 19. Nd4 {[%emt 0:12:15]} Qa8 {[%emt 0:05:43]} 20. Nde2 $2 {[%emt 0:05:06] [#] Loses the game.} (20. Nxe6 $11 dxe6 21. Ne4 Rxc1 22. Nxf6+ gxf6 23. Bxc1 (23. Rxc1 e5 $11)) 20... d4 $1 $19 {[%emt 0:05:03][%mdl 512]} 21. Bxb7 {[%emt 0:00:25]} Qxb7 {[%emt 0:00:07]} 22. Nxd4 {[%emt 0:00:28] [#]} Ng5 $1 {[%emt 0:00:29]} 23. h4 $2 {[%emt 0:03:11]} (23. e4 Nfxe4 (23... Ngxe4 24. Nxe4 Nxe4 25. Rxc7 $19) 24. Qd5) 23... Nh3+ {[%emt 0:00:17] Black is clearly winning.} 24. Kf1 {[%emt 0:00:22]} Qh1+ {[%emt 0:04:43]} 25. Ke2 {[%emt 0:00:03]} Qg2 {[%emt 0:00:07]} 26. Rf1 {[%emt 0:01:14]} Nh5 {[%emt 0:00:12]} 27. Ke1 {[%emt 0:01:31] [#]} Nxg3 $1 {[%emt 0:05:30][%mdl 512]} 28. fxg3 {[%emt 0:00:41]} Rxe3+ {[%emt 0:00:07]} 29. Nde2 {[%emt 0:01:06]} d5 {[%emt 0:00:35]} (29... Qxg3+ 30. Kd2 Rd3+ (30... Qxh4 31. Qxf7+ Kh8 32. Qxf8#) 31. Kc2 $16) 30. Qxd5 {[%emt 0:03:11] Weighted Error Value: White=0.55/Black=0.02 (flawless) .  Loses game:     	White=1     	---        Mistake:       	White=1     	---        OK:         	White=8     	Black=6      Best:        	---       	Black=1      Strong:       	---       	Black=1      Brilliant:      	---       	Black=1} 0-1

[Event "Reykjavik Open 2024"]
[Site "Reykjavik"]
[Date "2024.03.15"]
[Round "1.4"]
[White "Moussard, Jules"]
[Black "Birkisson, Bjorn Holm"]
[Result "1-0"]
[ECO "B30"]
[WhiteElo "2621"]
[BlackElo "2140"]
[Annotator "TA"]
[PlyCount "101"]
[EventDate "2024.03.12"]
[EventCountry "ISL"]
[SourceTitle "playchess.com"]
[Source "ChessBase"]
[SourceQuality "1"]
[TimeControl "40/5400+30:1800+30"]

{[%evp 11,101,25,31,32,47,37,44,38,40,23,37,24,13,12,18,18,20,11,16,8,16,-10,-14,-31,42,56,42,43,87,94,120,112,105,109,112,106,127,143,181,192,178,149,163,165,260,214,220,210,364,365,350,368,341,325,341,329,294,217,994,950,893,914,852,805,1420,1117,1431,1330,1489,1469,1336,1293,1160,1042,2223,2042,2033,2154,1972,2081,29979,29980,29984,29981,29981,29982,29984,29985,29989,29988,29984,29985]} 1. e4 {[%emt 0:00:19]} c5 {[%emt 0:00:07]} 2. Nf3 {[%emt 0:00:12]} Nc6 {[%emt 0:00:10]} 3. Bb5 {[%emt 0:01:15]} Nf6 {[%emt 0:00:20]} 4. Nc3 {[%emt 0:00:42]} Qc7 {[%emt 0:00:07]} 5. O-O {[%emt 0:02:09]} Nd4 {[%emt 0:00:17]} 6. Re1 {[%emt 0:05:01]} a6 {[%emt 0:00:16]} 7. Bf1 {[%emt 0:00:43]} Ng4 {[%emt 0:00:18] [#] ( -> ...Nxf3+)} 8. g3 {[%emt 0:00:21]} Nxf3+ {[%emt 0:00:30]} 9. Qxf3 {[%emt 0:00:13][%cal Oc3d5] Weiß steht etwas besser.} Ne5 {[%emt 0:00:07]} 10. Qg2 {[%emt 0:00:24]} e6 {[%emt 0:02:43] Gegen Nd5 gerichtet.} 11. d3 {[%emt 0:03:22]} Be7 {[%emt 0:03:20]} 12. f4 {[%emt 0:01:28]} Nc6 {[%emt 0:00:15]} 13. Be3 {[%emt 0:02:47]} O-O {[%emt 0:21:22]} 14. Qf2 {[%emt 0:01:36]} d6 {[%emt 0:11:41]} 15. Bg2 {[%emt 0:01:27]} Rb8 {[%emt 0:11:04]} 16. g4 {[%emt 0:06:53][%cal Bg3g4,Bg4g5][%mdl 32]} b5 {[%emt 0:02:10]} 17. Ne2 {[%emt 0:01:01]} f5 {[%emt 0:06:08]} (17... e5 $15) 18. exf5 $14 {[%emt 0:01:14]} exf5 {[%emt 0:00:06]} 19. g5 {[%emt 0:00:24]} Be6 {[%emt 0:09:51]} 20. d4 {[%emt 0:00:44] Weiß verwandelt nun seinen Vorteil.} cxd4 {[%emt 0:02:52]} 21. Nxd4 {[%emt 0:00:21]} Nxd4 {[%emt 0:00:38]} 22. Bxd4 {[%emt 0:00:06]} Bf7 {[%emt 0:00:23]} 23. a4 {[%emt 0:07:09]} b4 {[%emt 0:04:35]} 24. Qe2 {[%emt 0:01:50][%csl LRa6,LRe7] Verhindert d5. Weiß steht aktiver.} Rfe8 {[%emt 0:01:04][%cal Oe7g5]} 25. Qxa6 {[%emt 0:06:58] Schwarz muss nun Qa7 beachten.} d5 {[%emt 0:01:40]} 26. Be5 {[%emt 0:01:22]} Qc5+ {[%emt 0:00:26]} 27. Kh1 {[%emt 0:00:34]} Rbc8 {[%emt 0:04:42]} (27... Ra8 $142 28. Qb5 Qxc2) 28. c3 $40 {[%emt 0:01:09][%mdl 128] Weiss hat starken Angriff.} bxc3 {[%emt 0:00:10]} 29. bxc3 {[%emt 0:00:14]} Bd8 $2 {[%emt 0:02:23]} (29... Ra8 30. Qb5 Ra5 31. Qxc5 Bxc5) 30. Bd4 {[%emt 0:03:09]} Rxe1+ {[%emt 0:01:44]} 31. Rxe1 {[%emt 0:00:02]} Qc4 {[%emt 0:01:10]} 32. Qb7 {[%emt 0:03:03] Schwarz hat schwache schwarze Felder} Qc6 {[%emt 0:09:11] Verhindert Re8+.} 33. Qxc6 {[%emt 0:05:43]} Rxc6 {[%emt 0:00:06]} 34. Re5 {[%emt 0:00:03][%cal Oe5d5] Rxd5! wäre nun fies.} Re6 $2 {[%emt 0:01:09]} (34... Rd6 35. Kg1 (35. Rxf5 Bc7 $16) 35... g6) 35. Bxd5 $18 {[%emt 0:03:43]} (35. Rxf5 $2 {ist das falsche Schlagen.} Re1+ $19) (35. Rxe6 Bxe6 36. Bf1 Kf7 $16) 35... Rxe5 {[%emt 0:00:03]} 36. Bxf7+ {[%emt 0:00:06]} Kxf7 {[%emt 0:00:07]} 37. Bxe5 {[%emt 0:03:55][%mdl 4096] Endspiel. KB-KB} g6 {[%emt 0:00:33]} 38. Kg2 {[%emt 0:00:28]} Ke6 {[%emt 0:00:09]} 39. c4 {[%emt 0:00:17]} Ba5 {[%emt 0:03:15]} 40. Kf3 {[%emt 0:00:09]} Kd7 {[%emt 0:00:06]} 41. Ke3 {[%emt 0:30:14]} Kc6 {[%emt 0:30:07]} 42. Kd3 {[%emt 0:00:12]} Kc5 {[%emt 0:01:02]} 43. Bd4+ {[%emt 0:03:38]} Kc6 {[%emt 0:00:33]} 44. Bc3 {[%emt 0:00:10]} Bc7 {[%emt 0:00:08]} 45. Bd2 {[%emt 0:00:13]} Bb6 {[%emt 0:00:00]} 46. a5 {[%emt 0:00:00][%cal Ba4a5,Ba5a6,Ba6a7][%mdl 32] Weiß setzt Matt.} Bg1 {[%emt 0:00:00]} 47. h3 {[%emt 0:00:00]} Bc5 {[%emt 0:00:00]} 48. Be3 {[%emt 0:00:00]} Bf8 {[%emt 0:00:00]} 49. a6 {[%emt 0:00:00]} Bg7 {[%emt 0:00:00]} 50. a7 {[%emt 0:00:00]} Kb7 {[%emt 0:00:00] [#]} 51. Bb6 $1 {[%emt 0:00:00][%mdl 512] Gewichteter Fehlerwert: Weiß=0.09 (makellos) /Schwarz=0.25 (präzise) .  Fehler:       	---       	Schwarz=4     Ungenau:       	Weiß=1     	Schwarz=1     OK:         	Weiß=10    	Schwarz=14    Bester:       	Weiß=4     	Schwarz=2} 1-0

[Event "Reykjavik Open 2024"]
[Site "Reykjavik"]
[Date "2024.03.15"]
[Round "1.5"]
[White "Galperin, Platon"]
[Black "Cramling Bellon, Anna"]
[Result "1-0"]
[ECO "A00"]
[WhiteElo "2555"]
[BlackElo "2115"]
[Annotator "TA"]
[PlyCount "73"]
[EventDate "2024.03.12"]
[EventCountry "ISL"]
[SourceTitle "playchess.com"]
[Source "ChessBase"]
[SourceQuality "1"]
[TimeControl "40/5400+30:1800+30"]

{[%evp 9,73,-45,-36,-77,-68,-62,-39,-34,-36,-64,0,-24,-2,2,37,45,35,37,37,38,124,105,124,95,215,206,514,516,566,548,547,529,515,479,452,0,0,0,488,440,480,464,570,542,550,545,545,560,798,777,866,843,915,902,947,949,944,929,947,935,1265,1260,1239,1223,1235,1193]} 1. e3 {[%emt 0:00:24]} d5 {[%emt 0:00:44]} 2. d3 {[%emt 0:00:09]} e5 {[%emt 0:00:49]} 3. Ne2 {[%emt 0:00:06]} Nf6 {[%emt 0:01:42]} 4. Nd2 {[%emt 0:00:16]} c6 {[%emt 0:01:53]} 5. Ng3 {[%emt 0:00:29]} h5 {[%emt 0:00:10]} 6. Be2 {[%emt 0:00:07]} h4 {[%emt 0:00:15]} 7. Ngf1 {[%emt 0:00:15][%cal Bg3f1,Bf1h2,Bh2f3,Bf3d4][%mdl 32]} Bd6 {[%emt 0:05:50]} 8. h3 {[%emt 0:00:10] Black is slightly better.} Be6 {[%emt 0:01:06]} 9. Nh2 {[%emt 0:00:24]} Qd7 {[%emt 0:04:19]} (9... e4 $15) 10. a3 {[%emt 0:01:16]} Na6 {[%emt 0:02:14]} 11. b4 {[%emt 0:07:35]} O-O-O {[%emt 0:22:32]} 12. Bb2 {[%emt 0:04:24]} d4 {[%emt 0:08:28]} 13. exd4 {[%emt 0:06:59]} exd4 {[%emt 0:00:12]} 14. Nhf3 {[%emt 0:00:26][%cal Od2e4]} Nd5 {[%emt 0:07:30]} ({Black should try} 14... Rhe8 $14) 15. Nxd4 $16 {[%emt 0:00:50]} (15. Bxd4 $6 Bb8 $11) 15... Nf4 {[%emt 0:01:15]} 16. O-O $1 {[%emt 0:09:42]} Bxh3 {[%emt 0:15:54]} 17. gxh3 $18 {[%emt 0:00:36]} Nxh3+ $2 {[%emt 0:00:07]} (17... Nxe2+ {is more resistant.} 18. Qxe2 c5) 18. Kh1 {[%emt 0:00:13] Hoping for Bg4.} Nxf2+ {[%emt 0:00:21]} 19. Rxf2 {[%emt 0:00:07] And now Bg4 would win.} Qh3+ {[%emt 0:00:05]} 20. Kg1 {[%emt 0:00:07]} Qg3+ {[%emt 0:00:19]} 21. Rg2 {[%emt 0:01:06]} Qe3+ {[%emt 0:00:55]} 22. Kh1 {[%emt 0:00:52]} Qh3+ {[%emt 0:07:02]} 23. Kg1 {[%emt 0:00:54]} Qe3+ {[%emt 0:00:04]} 24. Kf1 {[%emt 0:00:21] White is clearly winning.} h3 {[%emt 0:03:41][%cal Bh4h3,Bh3h2][%mdl 32]} 25. Bg4+ {[%emt 0:02:27]} (25. Rxg7 h2 26. Kg2 (26. Bg4+ Kb8 27. Nxc6+ bxc6 28. Kg2 h1=Q+ 29. Qxh1 Qg3+ 30. Kf1 Rxh1+ 31. Ke2 Rh2+ 32. Kd1 Qg1+) 26... h1=R (26... h1=B+ 27. Qxh1 Rxh1 28. Rxh1 $19) 27. Qxh1 Rxh1 (27... Qxd2 $2 28. Qc1 $18) 28. Rxh1 Qxd2 29. Rxf7 Rg8+ 30. Kf1 Kb8 $19) 25... f5 {[%emt 0:08:42]} 26. Bxf5+ {[%emt 0:03:44]} (26. Nxf5 $2 hxg2+ 27. Kxg2 Rh2+ 28. Kf1 Qf2#) 26... Kb8 {[%emt 0:00:08] [#]} 27. Rg1 {[%emt 0:00:10]} (27. Rxg7 $2 {too greedy.} h2 28. Kg2 h1=Q+ (28... h1=R $2 29. Qxh1 Qxd2+ 30. Kf3 $19) 29. Qxh1 Qxd2+ (29... Rh2+ 30. Qxh2 Qxd2+ 31. Kf1 $17) 30. Kf3 Qf4+ 31. Ke2 Rde8+ 32. Be4 Rxh1 33. Rxh1 Rxe4+ 34. Kd1 Re8 $19 (34... Rxd4 35. Rh8+ Bf8 36. Bxd4 $11)) 27... h2 {[%emt 0:02:48] [#]} 28. Rh1 {[%emt 0:00:07]} (28. Rxg7 $2 {is a self mate.} h1=Q+) 28... Rh4 {[%emt 0:03:17]} 29. N2f3 {[%emt 0:02:00]} Rh6 {[%emt 0:02:02]} 30. Qe1 {[%emt 0:01:43]} Qf4 {[%emt 0:00:16]} 31. Bc1 {[%emt 0:00:10]} Qg3 {[%emt 0:00:44]} 32. Qxg3 {[%emt 0:00:07]} Bxg3 {[%emt 0:00:15]} 33. Bxh6 {[%emt 0:00:09]} gxh6 {[%emt 0:00:05]} 34. Kg2 {[%emt 0:00:10]} Rg8 {[%emt 0:00:26][%cal Bd8g8,Bg8g6,Bg6g7][%mdl 32]} 35. Be6 {[%emt 0:00:18]} Rg6 {[%emt 0:00:30]} 36. Bf7 {[%emt 0:00:11]} Rg7 {[%emt 0:01:14]} 37. Nf5 {[%emt 0:00:09] Weighted Error Value: White=0.31/Black=0.55.  Mistake:       	---       	Black=4      Inaccurate:     	White=1     	Black=2      OK:         	White=9     	Black=5      Best:        	White=6     	Black=5      Strong:       	White=1     	---} 1-0

[Event "Reykjavik Open 2024"]
[Site "Reykjavik"]
[Date "2024.03.15"]
[Round "1.6"]
[White "George Samir, David"]
[Black "Cornette, Matthieu"]
[Result "1/2-1/2"]
[ECO "B31"]
[WhiteElo "2130"]
[BlackElo "2575"]
[Annotator "TA"]
[PlyCount "73"]
[EventDate "2024.03.12"]
[EventCountry "ISL"]
[SourceTitle "playchess.com"]
[Source "ChessBase"]
[SourceQuality "1"]
[TimeControl "40/5400+30:1800+30"]

{[%evp 19,73,3,6,12,25,12,21,-29,-15,-23,-28,-15,-15,-87,-88,-141,-127,-118,-131,-116,-135,-129,-33,-37,-41,-33,-37,-31,-27,-47,0,0,0,-8,-8,-8,-8,-8,-9,-8,-8,0,0,0,0,0,0,0,0,0,0,0,8,8,8,8]} 1. e4 {[%emt 0:00:14]} c5 {[%emt 0:00:09]} 2. Nf3 {[%emt 0:00:20]} Nc6 {[%emt 0:00:28]} 3. Bb5 {[%emt 0:00:16]} g6 {[%emt 0:01:18]} 4. Bxc6 {[%emt 0:01:14]} bxc6 {[%emt 0:01:42]} 5. O-O {[%emt 0:00:08]} Bg7 {[%emt 0:00:06]} 6. c3 {[%emt 0:00:30]} Nf6 {[%emt 0:01:01]} 7. Re1 {[%emt 0:03:54]} O-O {[%emt 0:01:04]} 8. d4 {[%emt 0:00:03]} cxd4 {[%emt 0:01:11]} 9. cxd4 {[%emt 0:00:02]} d6 {[%emt 0:00:16]} 10. Nc3 {[%emt 0:00:43]} Bg4 {[%emt 0:05:33]} 11. h3 {[%emt 0:08:09]} Bxf3 {[%emt 0:00:03]} 12. Qxf3 {[%emt 0:00:18]} Nd7 {[%emt 0:00:06]} 13. d5 {[%emt 0:05:51]} (13. Rd1 $142) 13... c5 $11 {[%emt 0:02:26]} 14. Bd2 {[%emt 0:09:39]} c4 {[%emt 0:14:06]} 15. b3 {[%emt 0:04:07]} Rc8 {[%emt 0:11:53]} 16. bxc4 {[%emt 0:07:14]} (16. Rab1 $11) 16... Ne5 $17 {[%emt 0:02:41]} 17. Qg3 {[%emt 0:00:25]} (17. Qd1 $142) 17... Nxc4 {[%emt 0:02:12]} ({Don't do} 17... Rxc4 18. Nb5 $17) 18. Bf4 {[%emt 0:00:14]} Qa5 {[%emt 0:04:11]} 19. Rac1 {[%emt 0:00:34]} Rc7 {[%emt 0:02:09]} 20. Re2 {[%emt 0:14:58]} Na3 {[%emt 0:06:35]} (20... Ne5 $17 {aiming for ...Rfc8.} 21. Rb2 Qa6) 21. Nd1 $1 $15 {[%emt 0:00:43] [#] Strongly threatening Rxc7.} Rxc1 {[%emt 0:00:46]} 22. Bxc1 {[%emt 0:00:02]} Nb5 {[%emt 0:00:43] ...Nd4 would now be deadly.} 23. Qd3 {[%emt 0:09:04]} Rc8 {[%emt 0:07:59]} 24. Be3 {[%emt 0:07:38]} a6 {[%emt 0:10:53]} (24... Qa4 $15 {is more appropriate.}) 25. Rc2 $11 {[%emt 0:01:37] The position is equal.} Qe1+ {[%emt 0:01:33]} 26. Kh2 {[%emt 0:00:07]} Rxc2 {[%emt 0:00:46]} 27. Qxc2 {[%emt 0:00:08] [#] Threatening mate with Qc8+.} Be5+ {[%emt 0:00:02]} 28. f4 {[%emt 0:00:49]} Bd4 {[%emt 0:00:59]} 29. Qd2 {[%emt 0:00:17]} Qxd2 {[%emt 0:00:22]} 30. Bxd2 {[%emt 0:01:18][%mdl 4096] Endgame. KBN-KBN} f5 {[%emt 0:00:08]} 31. exf5 {[%emt 0:04:31]} gxf5 {[%emt 0:00:07]} 32. Be3 {[%emt 0:00:06]} Bf6 {[%emt 0:04:59]} 33. Bb6 {[%emt 0:00:34] Dodges Nc7} Kf7 {[%emt 0:02:13]} 34. a4 {[%emt 0:06:09]} Na3 {[%emt 0:04:00]} 35. Ne3 {[%emt 0:00:12]} e6 {[%emt 0:04:34]} 36. dxe6+ {[%emt 0:04:09]} Kxe6 {[%emt 0:00:05]} 37. g4 {[%emt 0:00:12] Weighted Error Value: White=0.11 (very precise) /Black=0.08 (flawless) .  Mistake:       	White=3     	Black=2      OK:         	White=11    	Black=16     Best:        	White=1     	Black=2      Strong:       	White=1     	---} 1/2-1/2